Cogmind - Beta 16 @@@ ROGUE MODE // 2025.10.29 @ 00:12:21 Player: ChromeKnight Result: Destroyed by 6V-WFC(j) with Overtuned Pulse Rifle Performance ------------- Evolutions (0) 0 Regions Visited (3) 600 Robots Destroyed (5) 25 Value Destroyed (152) 152 Prototype IDs (7) 140 Alien Tech Used (0) 0 Bonus (642) 642 TOTAL SCORE: 1559 Bonus ------- Registered with UFD 300 Met Optimus in HQ 500 Friendly Fire -158 Cogmind --------- Core Integrity 0/250 Matter 300/300 Energy 140/140 System Corruption 0% Temperature Cool (12) Movement Treading (255) Ox1 Location -7/Scraptown Parts ------- > --- POWER (1) -------- Light Deuterium Engine > --- PROPULSION (2) --- Spiked Treads Armored Treads > --- UTILITY (2) ------ High-capacity Storage Unit > --- WEAPON (2) ------- Heavy Pick > --- INVENTORY (20) --- Light Treads Cesium-ion Thruster Small Storage Unit Terrain Scanner Surveybot 17 Chip Improved Melee Analysis Suite System Shield Tech Extrapolator Mapping Drone Bay (3/3) Master Drone Bay (1/1) Scrapoid Pod Siege Cannon Replica CPS Tube (2) Junk Cannon (10) Vortex Trap Peak State ------------ > --- POWER ------------ Light Deuterium Engine > --- PROPULSION ------- Spiked Treads Armored Treads > --- UTILITY ---------- High-capacity Storage Unit Medium Reactive Plating > --- WEAPON ----------- Disruptor Cannon Heavy Pick > --- INVENTORY -------- Light Treads Cesium-ion Thruster Small Storage Unit Terrain Scanner Surveybot 17 Chip Improved Melee Analysis Suite System Shield Tech Extrapolator Mapping Drone Bay Master Drone Bay Scrapoid Pod Siege Cannon Replica CPS Tube Junk Cannon Vortex Trap [Rating: 32] Favorites ----------- Power Light Deuterium Engine Engine Light Deuterium Engine Propulsion Spiked Treads Treads Spiked Treads Utility Hardened Light Armor Plating Storage Small Storage Unit Protection Hardened Light Armor Plating Weapon Small Laser Energy Gun Small Laser Energy Cannon Disruptor Cannon Ballistic Gun Battle Rifle Special Weapon Junk Cannon Piercing Weapon Heavy Pick Build | -11 -10 -10 -7 ------- Run | Yrd Mat Sub Scr Slots Evolved . | . . . . Power . | . . . . Propulsion . | . . . . Utility . | . . . . Weapon . | . . . . Parts Attached 18 | 6 . 4 8 Power 2 | 1 . . 1 Engine 2 | 1 . . 1 Core . | . . . . Reactor . | . . . . Propulsion 4 | 2 . 1 1 Treads 4 | 2 . 1 1 Leg . | . . . . Wheel . | . . . . Hover . | . . . . Flight . | . . . . Utility 5 | 1 . 1 3 Device . | . . . . Storage 2 | 1 . . 1 Processor . | . . . . Hackware . | . . . . Protection 3 | . . 1 2 Artifact . | . . . . Weapon 7 | 2 . 2 3 Energy Gun 2 | 1 . 1 . Energy Cannon 1 | . . . 1 Ballistic Gun 2 | 1 . 1 . Ballistic Cannon . | . . . . Launcher . | . . . . Special Weapon 1 | . . . 1 Impact Weapon . | . . . . Slashing Weapon . | . . . . Piercing Weapon 1 | . . . 1 Special Melee Weapon . | . . . . Unidentified Prototypes 1 | . . . 1 Parts Lost 4 | . . 1 3 Power . | . . . . Propulsion . | . . . . Utility 2 | . . . 2 Weapon 2 | . . 1 1 Highest Loss Streak 3 | . . 1 3 To Critical Strikes . | . . . . Average Backups 7 | . . 3 8 Power . | . . . . Propulsion 1 | . . . 1 Utility 4 | . . . 5 Weapon 1 | . . 1 1 Tool/Special . | . . . . Unused Backups 17 | . . . 17 Power 2 | . . . 2 Propulsion 1 | . . . 1 Utility 8 | . . . 8 Weapon 4 | . . . 4 Tool/Special 2 | . . . 2 Average Slot Usage (%) 88 | . 85 84 89 Engine 14 | . 14 14 14 Treads 28 | . 28 28 28 Storage 13 | . 14 9 14 Protection 10 | . . 4 12 Energy Gun 8 | . 14 19 7 Ballistic Gun 7 | . 14 8 7 Special Weapon 2 | . . . 3 Piercing Weapon 1 | . . . 1 Peak Build Rating 32 | 6 6 10 32 Average Rating 16 | 4 6 7 18 On Entrance 5 | . 6 6 9 Avg Prop Armor Cover (%) . | . . . . Naked Turns . | . . . . Heaviest Build 77 | 11 11 24 77 Greatest Support 40 | 40 40 40 40 Greatest Overweight (x) 1 | . . . 1 Average Overweight (x) . | . . . . Largest Inventory Capacity 20 | 8 8 8 20 Average Capacity 12 | 6 8 6 12 Most Carried 20 | . 1 8 20 Average Carried 8 | . . 3 9 Final Capacity 20 | 8 8 8 20 Final Carried 19 | . 1 8 19 Class Distribution -------------------- 100% | Mutant Dominant Class ---------------- Mutant | -10/Materials Mutant | -10/Subcaves Mutant | -7/Scraptown Resources | -11 -10 -10 -7 ----------- Run | Yrd Mat Sub Scr Matter Collected 474 | 225 35 94 120 Remotely . | . . . . Salvage Created 234 | . . 93 141 Parts 12 | . . 4 8 Haulers Intercepted . | . . . . Recyclers Shooed . | . . . . Parts Field Recycled . | . . . . Retrieved Matter . | . . . . Parts Self-Destructed 7 | . . 7 . Prevented . | . . . . Parts Restored . | . . . . Kills | -11 -10 -10 -7 ------- Run | Yrd Mat Sub Scr Combat Hostiles Destroyed 4 | . . 2 2 Melee 2 | . . . 2 Guns 2 | . . 2 . Classes Destroyed 4 | . . 1 3 Subdweller 2 | . . 2 . Federalist 1 | . . . 1 Explorer 1 | . . . 1 Ranger 1 | . . . 1 Best Kill Streak 1 | . . 1 1 Combat Bots Only 1 | . . 1 1 Max Kills in Single Turn 1 | . . 1 1 Gunslinging . | . . . . Exploded . | . . . . Melee 1 | . . . 1 Uniques/NPCs Destroyed . | . . . . Combat | -11 -10 -10 -7 -------- Run | Yrd Mat Sub Scr Hostile Shots Fired 116 | . . 18 98 Missed 19 | . . 5 14 Hits 97 | . . 13 84 Melee 5 | . . . 5 Projectile 92 | . . 13 79 Critical Strikes 2 | . . 1 1 Damage Taken 1370 | . . 344 1026 Core 264 | . . 21 243 Absorbed by Shields . | . . . . Ignored by Resistances 10 | . . . 10 Regen/Repaired (Parts) 467 | . . . 467 Core Remaining (%) 100 | 100 . . . Volleys Fired 13 | . . 12 1 Largest 2 | . . 2 1 Hottest 81 | . . 80 81 Shots Fired 25 | . . 24 1 Gun 24 | . . 24 . Cannon 1 | . . . 1 Launcher . | . . . . Special . | . . . . Kinetic 8 | . . 8 . Thermal 12 | . . 12 . Explosive . | . . . . Electromagnetic 5 | . . 4 1 Robot Hit Streak 12 | . . 12 2 Robot Miss Streak 1 | . . 1 . Penetration Max . | . . . . Secondary Targets . | . . . . Shots Hit Robots 32 | . . 21 11 Core Hits 12 | . . 6 6 Critical Kills . | . . . . Critical Parts Destroyed . | . . . . Critical Strikes 1 | . . . 1 Impale 1 | . . . 1 Melee Attacks 26 | . . . 26 Impact . | . . . . Slashing . | . . . . Piercing 26 | . . . 26 Sneak Attacks 1 | . . . 1 Combat Hostiles . | . . . . Follow-up Attacks . | . . . . Damage Inflicted 530 | . . 239 291 Guns 239 | . . 239 . Cannons 14 | . . . 14 Explosions . | . . . . Melee 270 | . . . 270 Ramming 7 | . . . 7 Kinetic 79 | . . 79 . Thermal 113 | . . 113 . Explosive . | . . . . Electromagnetic 61 | . . 47 14 Impact . | . . . . Slashing . | . . . . Piercing 270 | . . . 270 Highest Corruption . | . . . . Average Corruption . | . . . . Corruption Purged . | . . . . Corruption Blocked . | . . . . Overload Shots . | . . . . Overflow Damage . | . . . . Projectiles . | . . . . Explosions . | . . . . Melee . | . . . . Knockbacks . | . . . . Impact . | . . . . Kinetic . | . . . . Secondary . | . . . . Self-Inflicted Damage . | . . . . Shots . | . . . . Rammed 1 | . . . 1 Targets Rammed 1 | . . . 1 Kicked . | . . . . Crushed . | . . . . Highest Temperature 279 | . . 279 70 Average Temperature 95 | . . 177 33 Received Heat Transfer 837 | . . 398 439 Siege Activations . | . . . . Martial Activations . | . . . . Shielding Activations . | . . . . Robots Disrupted . | . . . . Combat Hostiles . | . . . . Robots Corrupted . | . . . . Combat Hostiles . | . . . . Parts Fried . | . . . . Impact Corruptions . | . . . . Robots Melted . | . . . . Combat Hostiles . | . . . . Parts Melted 2 | . . 2 . Heat Transferred 250 | . . 250 . Parts Sabotaged . | . . . . Parts Stolen . | . . . . Parts Stripped . | . . . . Power Chain Reactions . | . . . . Alert | -11 -10 -10 -7 ------- Run | Yrd Mat Sub Scr Maximum Alert Level . | . . . . Low Security (%) 100 | 100 100 . . Level 1 . | . . . . Level 2 . | . . . . Level 3 . | . . . . Level 4 . | . . . . Level 5 . | . . . . High Security . | . . . . Max Security . | . . . . Peak Influence . | . . . . Initial . | . . . . Average . | . . . . Influence Increases . | . . . . Influence Decreases . | . . . . Squads Dispatched . | . . . . Investigation . | . . . . Extermination . | . . . . Reinforcement . | . . . . Assault . | . . . . Garrison . | . . . . Intercept . | . . . . Searches Triggered . | . . . . Construction Impeded . | . . . . Haulers Reinforced . | . . . . Active Scanning Responses . | . . . . Cargo Convoy Interrupts . | . . . . Stealth | -11 -10 -10 -7 --------- Run | Yrd Mat Sub Scr Distress Signals . | . . . . Communications Jammed . | . . . . Distress Signals . | . . . . Times Spotted 12 | . . 3 9 Peak Tracking Total 5 | . . 2 5 Tactical Retreats . | . . . . Traps | -11 -10 -10 -7 ------- Run | Yrd Mat Sub Scr Traps Triggered . | . . . . Indirectly . | . . . . Trap Hack Attempts . | . . . . Triggered . | . . . . Disarmed . | . . . . Reprogrammed . | . . . . Reused . | . . . . Traps Extracted . | . . . . Installed . | . . . . Triggered . | . . . . Most Traps Carried 1 | . . . 1 Machines | -11 -10 -10 -7 ---------- Run | Yrd Mat Sub Scr Machines Disabled 3 | . . . 3 Max in Single Turn 1 | . . . 1 Machines Repaired . | . . . . Machines Dismantled . | . . . . Machines Sabotaged . | . . . . Overloaded Fab Kills . | . . . . Hacking | -11 -10 -10 -7 --------- Run | Yrd Mat Sub Scr Machines Accessed 3 | . . . 3 Terminals . | . . . . Fabricators . | . . . . Repair Stations . | . . . . Recycling Units . | . . . . Scanalyzers . | . . . . Garrison Access . | . . . . Total Hacks 35 | . . . 35 Successful 35 | . . . 35 Failed . | . . . . Catastrophic . | . . . . Database Lockouts . | . . . . Manual . | . . . . Terminals . | . . . . Fabricators . | . . . . Repair Stations . | . . . . Recycling Units . | . . . . Scanalyzers . | . . . . Garrison Access . | . . . . Terminal Hacks 35 | . . . 35 Record 34 | . . . 34 Proto ID Catalog 1 | . . . 1 Fabricator Hacks . | . . . . Repair Station Hacks . | . . . . Recycling Unit Hacks . | . . . . Scanalyzer . | . . . . Garrison Access Hacks . | . . . . Unauthorized Hacks . | . . . . Terminals . | . . . . Fabricators . | . . . . Repair Stations . | . . . . Recycling Units . | . . . . Scanalyzers . | . . . . Garrison Access . | . . . . Data Cores Recovered . | . . . . Used . | . . . . Hacking Detections . | . . . . Full Trace Events . | . . . . Feedback Events . | . . . . Feedback Blocked . | . . . . Robot Schematics Acquired . | . . . . Robots Built . | . . . . Authchips . | . . . . Time . | . . . . Total Robot Build Rating . | . . . . Part Schematics Acquired . | . . . . Parts Built . | . . . . Authchips . | . . . . Time . | . . . . Total Part Build Rating . | . . . . Part Studies Acquired . | . . . . Parts Repaired . | . . . . Time . | . . . . Parts Recycled . | . . . . Recycled Matter . | . . . . Retrieved Matter . | . . . . Retrieved Components . | . . . . Parts Scanalyzed . | . . . . Part Schematics Acquired . | . . . . Parts Damaged . | . . . . Bothacking | -11 -10 -10 -7 ------------ Run | Yrd Mat Sub Scr Used RIF Installer . | . . . . Robots Hacked . | . . . . Non-combat . | . . . . Combat . | . . . . Robot Hacks Applied . | . . . . Relay Couplers Released . | . . . . Fabnet Peak Effective % . | . . . . Robots Rewired . | . . . . Allies Hacked . | . . . . Hacks Repelled . | . . . . Allies | -11 -10 -10 -7 -------- Run | Yrd Mat Sub Scr Total Allies . | . . . . Largest Group . | . . . . Highest-Rated Group . | . . . . Highest-Rated Ally . | . . . . Total Orders . | . . . . Ally Attacks . | . . . . Total Damage . | . . . . Kills . | . . . . Allies Corrupted . | . . . . Allies Melted 2 | . . . 2 Intel | -11 -10 -10 -7 ------- Run | Yrd Mat Sub Scr Active Infowar (turns) . | . . . . Robot Analysis Total . | . . . . Derelict Logs Recovered 4 | . . . 4 Drone Launches . | . . . . Drone Recoveries . | . . . . Exploration | -11 -10 -10 -7 ------------- Run | Yrd Mat Sub Scr Turns Passed 5231 | 80 201 413 4537 Spaces Moved 2630 | 51 126 180 2273 Core 9 | 9 . . . Treads 2621 | 42 126 180 2273 Legs . | . . . . Wheels . | . . . . Hover . | . . . . Flight . | . . . . Fastest Speed 50 | 50 160 160 160 Average Speed 185 | 140 160 160 189 Slowest Speed 255 | 160 160 160 255 Overloaded Moves . | . . . . Propulsion Burnouts . | . . . . Robots Hopped . | . . . . Potential Cave-ins . | . . . . Cave-ins Triggered . | . . . . Exploration Rate (%) 29 | 4 14 13 85 Regions Visited 3 Branch Regions 2 Pre-discovered Areas 5 | . . . 5 Known Exits Taken . | . . . . Unknown Exits Taken 3 | 1 1 1 . Scrap Searched 5 | . . 3 2 Spaces Dug 8 | . . . 8 Terrain Destroyed 8 | . . . 8 Melee 8 | . . . 8 Projectile . | . . . . AOE . | . . . . Terrain Rammed . | . . . . Walls Destroyed . | . . . . Machines Disabled . | . . . . Actions | -11 -10 -10 -7 --------- Run | Yrd Mat Sub Scr Total 2913 | 56 126 281 2450 Wait 176 | . . 70 106 Move 2627 | 50 125 179 2273 Hop . | . . . . Pick Up 26 | . 1 8 17 Fast Attach 11 | 6 . 1 4 Attach 6 | . . 3 3 Detach 3 | . . 1 2 Swap 8 | . . 3 5 Drop 15 | . . 3 12 Fire 13 | . . 12 1 Melee 26 | . . . 26 Ram . | . . . . Kick . | . . . . Crush 1 | . . . 1 Escape Stasis . | . . . . Rewire . | . . . . Trap . | . . . . Miscellaneous 1 | . . 1 . Route ------- -11/Scrapyard -10/Materials -10/Subcaves -7/Scraptown (discovered 1 exit: [*Fac]) History --------- Turn | Location | Event 45 | -11/Scrapyard | Discovered new exit (range 14) 81 | -11/Scrapyard | Entered Materials 266 | -10/Materials | Discovered new exit (range 8) 282 | -10/Materials | Entered Subcaves 283 | -10/Subcaves | Approached by a straggling Scientist 310 | -10/Subcaves | Build established: Mutant 468 | -10/Subcaves | Disturbed a concealed Subdweller 468 | -10/Subcaves | Scientist uncovered a shortcut to Scraptown 695 | -10/Subcaves | Entered Scraptown 743 | -7/Scraptown | Heard Great Nut preacher, LISTEN AND RECITE! 937 | -7/Scraptown | Visited Comm Corps 982 | -7/Scraptown | Scanned Subdweller tech in exchange for log data 987 | -7/Scraptown | Learned Factory emergency access door positions 988 | -7/Scraptown | Learned location of 2 exits from Proximity Caves 990 | -7/Scraptown | Learned Research interactive machine intel 993 | -7/Scraptown | Learned Factory trap positions 1019 | -7/Scraptown | Discovered new exit (range 11) 1662 | -7/Scraptown | Visited Symbiants 1716 | -7/Scraptown | Visited CR-KLE's Repair Center 1781 | -7/Scraptown | Visited Artisan Demo Area 1848 | -7/Scraptown | Visited UFD Registry 1848 | -7/Scraptown | Registered with UFD as "Ionrigger" 1906 | -7/Scraptown | Visited Curators Association 1936 | -7/Scraptown | Visited Science Guys 2017 | -7/Scraptown | Visited Scrapoid Pod Storage 2045 | -7/Scraptown | Visited Scrap Suit Storage 2088 | -7/Scraptown | Visited Junk Cannon Lab 2505 | -7/Scraptown | Delivered Scrap Shield to a Scientist 2657 | -7/Scraptown | Visited Chapter 10 2705 | -7/Scraptown | Visited Derelict Rescue Squad 2881 | -7/Scraptown | Visited Cartography Club 2925 | -7/Scraptown | Found Surveybot 17 Chip 3012 | -7/Scraptown | Found Prototype Special Weapon 3012 | -7/Scraptown | Identified Junk Cannon 3964 | -7/Scraptown | CR-KLE repaired 6 parts 4246 | -7/Scraptown | Found Scrapoid Pod 4567 | -7/Scraptown | Met Optimus 4567 | -7/Scraptown | Accepted into 0bPrime 4967 | -7/Scraptown | Civil war broke out across Scraptown 4976 | -7/Scraptown | Found Siege Cannon Replica 5055 | -7/Scraptown | Found Master Drone Bay 5108 | -7/Scraptown | Optimus destroyed in the chaos of civil war 5167 | -7/Scraptown | Core integrity fell below 50% 5188 | -7/Scraptown | Lost 9 allies 5204 | -7/Scraptown | Core integrity fell below 20% 5228 | -7/Scraptown | Learned location of Lower Caves (-7) 5228 | -7/Scraptown | Learned location of Extension (-6) 5228 | -7/Scraptown | Learned location of Cetus (-6) 5228 | -7/Scraptown | Learned 12 Research zone layouts 5228 | -7/Scraptown | Learned 16 Research zone layouts 5228 | -7/Scraptown | Learned 4 Access zone layouts 5228 | -7/Scraptown | Learned 4 Storage zone layouts 5228 | -7/Scraptown | Learned 4 Recycling zone layouts 5228 | -7/Scraptown | Learned 16 Lower Caves zone layouts 5228 | -7/Scraptown | Learned 16 Upper Caves zone layouts 5228 | -7/Scraptown | Learned 24 Upper Caves zone layouts 5228 | -7/Scraptown | Learned 4 Hub_04(d) zone layouts 5228 | -7/Scraptown | Learned Research emergency access door positions 5228 | -7/Scraptown | Learned location of 3 exits from Lower Caves 5228 | -7/Scraptown | Learned location of 1 exit from Upper Caves 5232 | -7/Scraptown | Destroyed by 6V-WFC(j) with Overtuned Pulse Rifle Last Messages --------------- >>Record "SHORTCUTS/RES" Research shortcuts. Data stored: Research emergency access points. >>Record "EXITS/LOW=3" Lower Caves exits. Data stored: Lower Caves exits (x3). >>Record "EXITS/UPP=1" Upper Caves exit. Data stored: Upper Caves exits (x1). >>Record "ACCESS/LOW=1" Lower Caves entrance. Data stored: Lower Caves entrances (x1). >>Record "ACCESS/LOW=3" Lower Caves entrances. Data stored: Lower Caves entrances (x3). >>Record "ACCESS/EXT=1" Extension entrance. Data stored: Extension entrances (x1). 05229_ Critical hit (Burn: +50). 05230_ Med. Reactive Plating destroyed. Map ----- +----------------------------------------------------+ | ?????????????????????????????????????????????????? | | ?????????????????????????????????????????????????? | | ?????????????????????????????????????????????????? | | ?????????????????????????????????????????????????? | | ?????????????????????????????????????????????????? | | ?????????????????????????????????????????????????? | | ?????????????????????????????????????????????????? | | ?????????????????????????????????????????????????? | | ?????????????????????????????????????????????????? | | ?????????????????????????????????????????????????? | | ?????????????????????????????????????????????????? | | ??????????????????####???????????????????????????? | | ?????????????????##=!##??????????????????????????? | | ??????????????????%!%!#??????????????????????????? | | ??????????????????*=[[???????????????????????????? | | ??????????????????[!==???????????????????????????? | | ??????????????????%==!???????????????????????????? | | ??????????????????#[%#???????????????????????????? | | ###################!!#???????????????????????????? | | """""""## """""#*!###?????????????????????????? | | X """""## " " " #%*# ####??????????????????????? | | """##""" #!%# # #??????????????????????? | | "##""" #!=#*" ##??????????????????????? | | """##""" "![[%! ###????????????????????? | | """"## " """#%[#%###jX#????????????????????? | | ""## """# =#[##@###????????????????????? | | "" ""##"" """#! # #????????????????????? | | "" ""##" " #%=######M#######??????????????? | | * """ #/ # #??????????????? | | = "## # # ! #??????????????? | | # ########### ##### ## ###########??????????????? | | # ########### #####* ## #########????????????????? | | " """""""""" """" % "" "##"""""#????????????????? | | % "## "#????????????????? | | [ "## "#????????????????? | | "## "#????????????????? | | "## "#????????????????? | | "#????????????????? | | """"" " """""""""""%! "## "#????????????????? | | """"""""""""""""""" "##"""" #????????????????? | | ################"" "########????????????????? | | ##????????#"" "#############???????????? | | X"#????????#"" "## #"""""#""#???????????? | | "" ##????????#"" "## !!!!! !#???????????? | | "" X"#??????###"" "## #???????????? | | " ######### #"" "## #???????????? | | " X" #???????????? | | " "## ##"#???????????? | | " ######### #"" "## ! #??????????????? | | "" ""#??????###"" "## #"""""#??????????????? | +----------------------------------------------------+ Best States ------------- Heat Dissipation 25 Energy Generation 14 Energy Capacity 140 Matter Stores 300 Matter Capacity 300 Sight Range 16 Terrain Scan Density 10 Armor Coverage 800 Resistance: KI 30 Evasion (%) 40 Recoil Reduction 2 Item Schematics ----------------- None Robot Schematics ------------------ None Fabricated ------------ Nothing Repaired ---------- Nothing Studied --------- None Alien Tech Used ----------------- None Achievements -------------- None Challenges ------------ None Game ------ Seed MomentumMappingAutobeam Manual? 0 Play Time 00:16:59 Cumulative 488.4 hours Start 2025.10.28 @ 23:55:06 End 2025.10.29 @ 00:12:21 Sessions 1 Manual Loads 0 Difficulty Rogue Special Mode None Game No. 821 Rogue 666 Adventurer 148 Explorer 7 Win Type - Total 24 Types 19/1/3/1/0/0/0/0/0/0 Lore% 72 Gallery% 77 Achievement% 58 Wizard Run 0 Options --------- Layout 1 ASCII 0 Keyboard 0 Movement Numpad Keybinds 0 Fullscreen 2 Font 24/Smallcaps Map View 50x40 Zoom Use 0% Tactical HUD 1 Map Filters NONE Filters NONE Steam 1 RUN: d078510f-953d-4050-a20b-717c561879df